Cogmind - Beta 15 @@@ ROGUE MODE // 2025.09.07 @ 15:43:37 Player: odium reigns Result: Destroyed by S-10 Pest with Light Assault Rifle Performance ------------- Evolutions (1) 500 Regions Visited (5) 1000 Robots Destroyed (24) 120 Value Destroyed (655) 655 Prototype IDs (4) 80 Alien Tech Used (0) 0 Bonus (308) 308 TOTAL SCORE: 2663 Bonus ------- Follower Combat Kills 108 Entered Garrisons 200 Cogmind --------- Core Integrity 0/400 Matter 284/300 Energy 90/100 System Corruption 0% Temperature Cool (0) Movement Core (50) Location -9/Garrison Parts ------- > --- POWER (1) -------- (None) > --- PROPULSION (4) --- Flight Unit > --- UTILITY (2) ------ Sensor Array Hacking Suite > --- WEAPON (2) ------- (None) > --- INVENTORY (5) ---- Cooled Ion Engine Medium Storage Unit Weight Redist. System Hacking Suite Heavy Assault Rifle Peak State ------------ > --- POWER ------------ Cooled Ion Engine > --- PROPULSION ------- Aluminum Leg VSS Leg Improved Hover Unit Improved Hover Unit > --- UTILITY ---------- Sensor Array Hacking Suite > --- WEAPON ----------- Heavy Assault Rifle Heavy Assault Rifle > --- INVENTORY -------- Cooled Ion Engine Medium Storage Unit Weight Redist. System Hacking Suite Heavy Assault Rifle [Rating: 20] Favorites ----------- Power Ion Engine Engine Ion Engine Power Core Light Nuclear Core Propulsion Improved Hover Unit Treads Light Treads Leg Aluminum Leg Wheel Compact Wheel Hover Unit Improved Hover Unit Flight Unit Flight Unit Utility Sensor Array Device Sensor Array Storage Medium Storage Unit Hackware Hacking Suite Weapon Heavy Assault Rifle Ballistic Gun Heavy Assault Rifle Build | -11 -10 -10 -9 -9 -9 ------- Run | Yrd Mat Min Mat Sto Gar Slots Evolved 2 | . . . 2 . . Power . | . . . . . . Propulsion 2 | . . . 2 . . Utility . | . . . . . . Weapon . | . . . . . . Parts Attached 35 | 7 10 1 8 2 7 Power 6 | 1 2 1 . 2 . Engine 5 | 1 2 . . 2 . Core 1 | . . 1 . . . Reactor . | . . . . . . Propulsion 19 | 2 4 . 7 . 6 Treads 2 | . . . . . 2 Leg 4 | 2 . . . . 2 Wheel 4 | . 4 . . . . Hover 3 | . . . 3 . . Flight 6 | . . . 4 . 2 Utility 5 | 2 2 . 1 . . Device 2 | 1 1 . . . . Storage 2 | 1 1 . . . . Processor . | . . . . . . Hackware 1 | . . . 1 . . Protection . | . . . . . . Artifact . | . . . . . . Weapon 5 | 2 2 . . . 1 Energy Gun . | . . . . . . Energy Cannon . | . . . . . . Ballistic Gun 5 | 2 2 . . . 1 Ballistic Cannon . | . . . . . . Launcher . | . . . . . . Special Weapon . | . . . . . . Impact Weapon . | . . . . . . Slashing Weapon . | . . . . . . Piercing Weapon . | . . . . . . Special Melee Weapon . | . . . . . . Unidentified Prototypes 2 | . . . . 2 . Parts Lost 9 | . 2 . . . 7 Power 1 | . 1 . . . . Propulsion 6 | . . . . . 6 Utility . | . . . . . . Weapon 2 | . 1 . . . 1 Highest Loss Streak 5 | . 2 . . . 5 To Critical Strikes 1 | . . . . . 1 Average Backups 6 | 5 9 9 4 4 4 Power . | . . . . . 1 Propulsion 2 | 3 4 4 . . . Utility 2 | . 3 2 2 3 3 Weapon 1 | . . 2 1 1 . Tool/Special . | . . . . . . Unused Backups 14 | 2 4 2 2 . 4 Power 1 | . . . . . 1 Propulsion 5 | 2 2 1 . . . Utility 5 | . 1 . 1 . 3 Weapon 2 | . 1 . 1 . . Tool/Special 1 | . . 1 . . . Average Slot Usage (%) 96 | . 95 99 97 100 91 Engine 9 | . 14 10 . 9 9 Core 2 | . . 3 11 1 . Treads 4 | . . . . . 14 Leg 3 | . 12 . . . 1 Wheel 9 | . 15 28 1 . . Hover 10 | . . . 18 33 14 Flight 6 | . . . 22 11 9 Device 12 | . 13 14 11 11 11 Storage 6 | . 14 14 1 . . Hackware 5 | . . . 9 11 11 Ballistic Gun 23 | . 24 28 22 22 19 Peak Build Rating 20 | 9 10 13 19 19 20 Average Rating 12 | 6 8 11 16 18 16 On Entrance 11 | . 9 10 13 18 19 Naked Turns . | . . . . . . Heaviest Build 22 | 15 22 22 12 15 15 Greatest Support 40 | 20 32 32 21 21 40 Greatest Overweight (x) 1 | . . . 1 . 1 Average Overweight (x) . | . . . . . . Largest Inventory Capacity 10 | 8 10 10 10 5 5 Average Capacity 7 | 7 9 10 5 5 5 Most Carried 10 | 8 10 10 9 5 5 Average Carried 6 | 5 9 9 4 4 4 Final Capacity 10 | 8 10 10 5 5 5 Final Carried 10 | 8 10 10 4 5 5 Class Distribution -------------------- 87% | Mutant 7% | Commander-Mutant 3% | Scavenger-Mutant Dominant Class ---------------- Mutant | -10/Materials Mutant | -10/Mines Mutant | -9/Materials Commander-Mutant | -9/Storage Mutant | -9/Garrison Resources | -11 -10 -10 -9 -9 -9 ----------- Run | Yrd Mat Min Mat Sto Gar Matter Collected 1033 | 417 291 31 123 47 124 Remotely . | . . . . . . Salvage Created 821 | 166 305 . 123 48 179 Parts 61 | 15 25 . 8 3 10 Haulers Intercepted 4 | . 1 . 2 1 . Recyclers Shooed . | . . . . . . Parts Field Recycled . | . . . . . . Retrieved Matter . | . . . . . . Parts Self-Destructed . | . . . . . . Prevented . | . . . . . . Kills | -11 -10 -10 -9 -9 -9 ------- Run | Yrd Mat Min Mat Sto Gar Combat Hostiles Destroyed 11 | . 8 . . . 3 Guns 11 | . 8 . . . 3 Classes Destroyed 11 | 3 4 . 1 . 3 Worker 2 | 2 . . . . . Tunneler 3 | 3 . . . . . Hauler 4 | . 1 . 2 1 . Recycler 1 | 1 . . . . . Operator 2 | . 2 . . . . Watcher 1 | . . . 1 . . Swarmer 3 | . 3 . . . . Grunt 5 | . 5 . . . . Sentry 1 | . . . . . 1 Specialist 1 | . . . . . 1 Hunter 1 | . . . . . 1 Best Kill Streak 5 | 2 5 . 1 1 1 Combat Bots Only 4 | . 4 . . . 1 Max Kills in Single Turn 2 | 2 1 . 1 1 1 Gunslinging . | . . . . . . Exploded . | . . . . . . Melee . | . . . . . . Uniques/NPCs Destroyed . | . . . . . . Combat | -11 -10 -10 -9 -9 -9 -------- Run | Yrd Mat Min Mat Sto Gar Hostile Shots Fired 167 | . 54 . 2 . 111 Missed 50 | . 14 . 1 . 35 Hits 117 | . 40 . 1 . 76 Melee 1 | . . . . . 1 Projectile 116 | . 40 . 1 . 75 Critical Strikes 3 | . 1 . . . 2 Damage Taken 1539 | . 461 . 10 59 1009 Core 540 | . 140 . . 18 382 Absorbed by Shields . | . . . . . . Regen/Repaired (Parts) 11 | . . . 11 . . Core Remaining (%) 72 | 100 . 44 . . . Volleys Fired 86 | 12 47 . 7 3 17 Largest 2 | 2 2 . 2 2 2 Hottest 46 | 40 40 . 46 46 46 Shots Fired 150 | 24 74 . 14 6 32 Gun 150 | 24 74 . 14 6 32 Cannon . | . . . . . . Launcher . | . . . . . . Special . | . . . . . . Kinetic 150 | 24 74 . 14 6 32 Thermal . | . . . . . . Explosive . | . . . . . . Electromagnetic . | . . . . . . Robot Hit Streak 6 | 6 6 . 4 1 6 Robot Miss Streak 6 | 1 6 . 1 4 3 Penetration Max . | . . . . . . Secondary Targets 1 | . 1 . . . . Max Gunslinging Chain 1 | . 1 . . . . Shots Hit Robots 87 | 16 41 . 9 1 20 Core Hits 35 | 7 17 . 4 1 6 Critical Kills . | . . . . . . Critical Parts Destroyed . | . . . . . . Critical Strikes . | . . . . . . Melee Attacks . | . . . . . . Impact . | . . . . . . Slashing . | . . . . . . Piercing . | . . . . . . Sneak Attacks . | . . . . . . Combat Hostiles . | . . . . . . Follow-up Attacks . | . . . . . . Damage Inflicted 1143 | 238 515 . 134 17 239 Guns 1143 | 238 515 . 134 17 239 Cannons . | . . . . . . Explosions . | . . . . . . Melee . | . . . . . . Ramming . | . . . . . . Kinetic 1143 | 238 515 . 134 17 239 Thermal . | . . . . . . Explosive . | . . . . . . Electromagnetic . | . . . . . . Impact . | . . . . . . Slashing . | . . . . . . Piercing . | . . . . . . Highest Corruption . | . . . . . . Average Corruption . | . . . . . . Corruption Purged . | . . . . . . Corruption Blocked . | . . . . . . Overload Shots . | . . . . . . Overflow Damage . | . . . . . . Projectiles . | . . . . . . Explosions . | . . . . . . Melee . | . . . . . . Knockbacks . | . . . . . . Impact . | . . . . . . Kinetic . | . . . . . . Secondary . | . . . . . . Self-Inflicted Damage . | . . . . . . Shots . | . . . . . . Rammed . | . . . . . . Targets Rammed . | . . . . . . Kicked . | . . . . . . Crushed . | . . . . . . Highest Temperature 20 | . 20 . 6 . . Average Temperature 6 | . 8 . 4 . . Received Heat Transfer 270 | . 213 . 6 . 51 Siege Activations . | . . . . . . Martial Activations . | . . . . . . Shielding Activations . | . . . . . . Robots Disrupted . | . . . . . . Combat Hostiles . | . . . . . . Robots Corrupted . | . . . . . . Combat Hostiles . | . . . . . . Parts Fried . | . . . . . . Impact Corruptions . | . . . . . . Robots Melted . | . . . . . . Combat Hostiles . | . . . . . . Parts Melted . | . . . . . . Heat Transferred . | . . . . . . Parts Sabotaged . | . . . . . . Parts Stolen . | . . . . . . Parts Stripped . | . . . . . . Power Chain Reactions . | . . . . . . Alert | -11 -10 -10 -9 -9 -9 ------- Run | Yrd Mat Min Mat Sto Gar Maximum Alert Level . | . . . . . . Low Security (%) 100 | 100 100 100 100 100 100 Level 1 . | . . . . . . Level 2 . | . . . . . . Level 3 . | . . . . . . Level 4 . | . . . . . . Level 5 . | . . . . . . High Security . | . . . . . . Max Security . | . . . . . . Peak Influence 146 | 10 146 37 37 116 116 Initial 68 | . . 37 . 11 68 Average 34 | 1 70 8 4 63 42 Influence Increases 710 | 30 233 30 55 156 206 Destroy 0b10 Robot/C 300 | . 160 . . 60 80 Destroy 0b10 Robot/NC 65 | 30 15 . 15 5 . Destroy Leader 70 | . 42 . 6 22 . Allied During Kill 35 | . . . . 34 1 Successful Hack 24 | . . . 4 20 . Anti-Garrison Action 50 | . . . . . 50 Destroy Structure 1 | . 1 . . . . Partial Spotted 15 | . . . . 15 . Lose Combat Pursuer 150 | . 15 30 30 . 75 Influence Decreases 594 | 30 137 126 28 78 195 Entered New Map 112 | . . 59 . 16 37 Time Decay 292 | 30 117 67 28 50 . Lost Part 90 | . 20 . . . 70 Lost Ally 100 | . . . . 12 88 Squads Dispatched 3 | . 2 . . 1 . Investigation 1 | . . . . 1 . Extermination . | . . . . . . Reinforcement 2 | . 2 . . . . Assault . | . . . . . . Garrison . | . . . . . . Intercept . | . . . . . . Searches Triggered . | . . . . . . Construction Impeded . | . . . . . . Haulers Reinforced . | . . . . . . Active Scanning Responses . | . . . . . . Cargo Convoy Interrupts . | . . . . . . Stealth | -11 -10 -10 -9 -9 -9 --------- Run | Yrd Mat Min Mat Sto Gar Distress Signals 2 | . 2 . . . . Communications Jammed . | . . . . . . Distress Signals . | . . . . . . Times Spotted 37 | . 13 1 3 3 17 Peak Tracking Total 11 | . 6 2 4 3 11 Tactical Retreats 6 | . 1 1 1 . 3 Traps | -11 -10 -10 -9 -9 -9 ------- Run | Yrd Mat Min Mat Sto Gar Traps Triggered 1 | . . . . 1 . Indirectly . | . . . . . . Trap Hack Attempts . | . . . . . . Triggered . | . . . . . . Disarmed . | . . . . . . Reprogrammed . | . . . . . . Reused . | . . . . . . Traps Extracted . | . . . . . . Installed . | . . . . . . Triggered . | . . . . . . Machines | -11 -10 -10 -9 -9 -9 ---------- Run | Yrd Mat Min Mat Sto Gar Machines Disabled 2 | . . . . . 2 Max in Single Turn 1 | . . . . . 1 Garrison Relay 1 | . . . . . 1 Machines Repaired . | . . . . . . Machines Dismantled . | . . . . . . Machines Sabotaged . | . . . . . . Overloaded Fab Kills . | . . . . . . Hacking | -11 -10 -10 -9 -9 -9 --------- Run | Yrd Mat Min Mat Sto Gar Machines Accessed 9 | . 1 . 2 5 1 Terminals 7 | . 1 . 1 4 1 Fabricators . | . . . . . . Repair Stations 1 | . . . 1 . . Recycling Units . | . . . . . . Scanalyzers . | . . . . . . Garrison Access 1 | . . . . 1 . Total Hacks 28 | . 3 . 8 15 2 Successful 12 | . . . 5 6 1 Failed 16 | . 3 . 3 9 1 Catastrophic 1 | . . . . 1 . Database Lockouts . | . . . . . . Manual . | . . . . . . Terminals 24 | . 3 . 5 14 2 Fabricators . | . . . . . . Repair Stations 3 | . . . 3 . . Recycling Units . | . . . . . . Scanalyzers . | . . . . . . Garrison Access 1 | . . . . 1 . Terminal Hacks 9 | . . . 3 5 1 Record 1 | . . . 1 . . Robot Analysis 1 | . . . 1 . . Prototype ID Bank 1 | . . . . 1 . Branch Access Points 1 | . . . . 1 . Emergency Access Points 1 | . . . . . 1 Locate Traps 1 | . . . . 1 . Hauler Manifests 1 | . . . 1 . . Registered Components 1 | . . . . 1 . Zone Layout 1 | . . . . 1 . Fabricator Hacks . | . . . . . . Repair Station Hacks 2 | . . . 2 . . Scan Component 1 | . . . 1 . . Repair 1 | . . . 1 . . Recycling Unit Hacks . | . . . . . . Scanalyzer . | . . . . . . Garrison Access Hacks 1 | . . . . 1 . Unlock Access 1 | . . . . 1 . Unauthorized Hacks . | . . . . . . Terminals . | . . . . . . Fabricators . | . . . . . . Repair Stations . | . . . . . . Recycling Units . | . . . . . . Scanalyzers . | . . . . . . Garrison Access . | . . . . . . Data Cores Recovered . | . . . . . . Used . | . . . . . . Hacking Detections 7 | . 1 . 1 4 1 Full Trace Events 2 | . . . . 2 . Feedback Events . | . . . . . . Feedback Blocked . | . . . . . . Robot Schematics Acquired . | . . . . . . Robots Built . | . . . . . . Authchips . | . . . . . . Time . | . . . . . . Total Robot Build Rating . | . . . . . . Part Schematics Acquired . | . . . . . . Parts Built . | . . . . . . Authchips . | . . . . . . Time . | . . . . . . Total Part Build Rating . | . . . . . . Parts Repaired 1 | . . . 1 . . Time 26 | . . . 26 . . Parts Recycled . | . . . . . . Recycled Matter . | . . . . . . Retrieved Matter . | . . . . . . Retrieved Components . | . . . . . . Parts Scanalyzed . | . . . . . . Part Schematics Acquired . | . . . . . . Parts Damaged . | . . . . . . Bothacking | -11 -10 -10 -9 -9 -9 ------------ Run | Yrd Mat Min Mat Sto Gar Used RIF Installer . | . . . . . . Robots Hacked . | . . . . . . Non-combat . | . . . . . . Combat . | . . . . . . Robot Hacks Applied . | . . . . . . Relay Couplers Released 3 | . . . . . 3 Machine Destruction 3 | . . . . . 3 Fabnet Peak Effective % . | . . . . . . Robots Rewired 1 | . . . . 1 . Allies Hacked . | . . . . . . Hacks Repelled . | . . . . . . Allies | -11 -10 -10 -9 -9 -9 -------- Run | Yrd Mat Min Mat Sto Gar Total Allies 10 | . . . . 10 . Largest Group 10 | . . . . 10 5 Highest-Rated Group 88 | . . . . 88 40 Highest-Rated Ally 16 | . . . . 16 8 Total Orders . | . . . . . . Ally Attacks 36 | . . . . 19 17 Total Damage 339 | . . . . 195 144 Kills 4 | . . . . 3 1 Allies Corrupted . | . . . . . . Allies Melted . | . . . . . . Intel | -11 -10 -10 -9 -9 -9 ------- Run | Yrd Mat Min Mat Sto Gar Active Infowar (turns) 1349 | 58 319 282 163 115 412 Sensors 1234 | . 262 282 163 115 412 Terrain 115 | 58 57 . . . . Robot Analysis Total 1 | . . . 1 . . Derelict Logs Recovered 1 | . . 1 . . . Drone Launches . | . . . . . . Drone Recoveries . | . . . . . . Exploration | -11 -10 -10 -9 -9 -9 ------------- Run | Yrd Mat Min Mat Sto Gar Turns Passed 1453 | 161 320 282 163 115 412 Spaces Moved 1142 | 88 164 268 205 139 278 Core 80 | 3 . . . . 77 Treads 152 | . . . . . 152 Legs 162 | 85 64 . . . 13 Wheels 368 | . 100 268 . . . Hover 325 | . . . 156 139 30 Flight 55 | . . . 49 . 6 Fastest Speed 31 | 50 80 100 31 52 50 Average Speed 90 | 117 102 100 47 52 114 Slowest Speed 180 | 120 120 100 120 52 180 Overloaded Moves . | . . . . . . Propulsion Burnouts . | . . . . . . Robots Hopped 2 | . . . . . 2 Potential Cave-ins . | . . . . . . Cave-ins Triggered . | . . . . . . Exploration Rate (%) 32 | 5 30 72 20 22 47 Regions Visited 5 Branch Regions 2 Pre-discovered Areas . | . . . . . . Known Exits Taken 2 | . . . 1 1 . Unknown Exits Taken 3 | 1 1 1 . . . Scrap Searched 1 | . . 1 . . . Spaces Dug . | . . . . . . Terrain Destroyed . | . . . . . . Melee . | . . . . . . Projectile . | . . . . . . AOE . | . . . . . . Terrain Rammed . | . . . . . . Walls Destroyed . | . . . . . . Machines Disabled . | . . . . . . Actions | -11 -10 -10 -9 -9 -9 --------- Run | Yrd Mat Min Mat Sto Gar Total 1417 | 120 246 283 256 175 337 Wait 94 | . 3 9 26 23 33 Move 1132 | 87 163 267 204 139 272 Hop 2 | . . . . . 2 Pick Up 27 | 11 10 2 2 2 . Fast Attach 21 | 7 2 1 4 1 6 Attach 6 | . 2 . 3 . 1 Detach 2 | . 1 . . . 1 Swap 9 | . 6 . 2 1 . Drop 34 | 3 12 4 8 2 5 Fire 86 | 12 47 . 7 3 17 Melee . | . . . . . . Ram . | . . . . . . Kick . | . . . . . . Crush . | . . . . . . Escape Stasis . | . . . . . . Rewire 4 | . . . . 4 . Trap . | . . . . . . Miscellaneous . | . . . . . . Route ------- -11/Scrapyard -10/Materials -10/Mines -9/Materials (discovered 2 exits: *Sto x2) -9/Storage (discovered 2 exits: Rec / Gar) -9/Garrison (discovered 1 exit: *Rec) History --------- Turn | Location | Event 6 | -11/Scrapyard | Discovered new exit (range 16) 162 | -11/Scrapyard | Entered Materials 353 | -10/Materials | Build established: Mutant 394 | -10/Materials | Core integrity fell below 50% 467 | -10/Materials | Discovered new exit (range 7) 482 | -10/Materials | Entered Mines 483 | -10/Mines | Assembled infested the area 488 | -10/Mines | Assisted by a Guerilla fighting off Assembled 496 | -10/Mines | YI-UF0 nonchalantly dropped a Grenade Launcher on the ground 648 | -10/Mines | Found a Scrap Suit stashed away for nefarious purposes 651 | -10/Mines | Found Scrap Suit 742 | -10/Mines | Learned location of 1 exit from Materials 759 | -10/Mines | Discovered new exit (range 6) 764 | -10/Mines | Entered Materials 764 | -9/Materials | Evolved 2 slots: Propulsion x2 765 | -9/Materials | Identified exit to Storage 801 | -9/Materials | Repaired Flight Unit 916 | -9/Materials | Discovered exit to Storage (range 14) 927 | -9/Materials | Entered Storage 958 | -9/Storage | Assisted by bots powering up and referring to "LRC-V3" 991 | -9/Storage | Identified exit to Recycling 1042 | -9/Storage | Identified exit to Garrison 1042 | -9/Storage | Entered Garrison 1042 | -9/Garrison | Accompanied by 5 allies 1104 | -9/Garrison | Lost 8 allies 1234 | -9/Garrison | Triggered checkpoint 1290 | -9/Garrison | Discovered exit to Recycling (range 11) 1376 | -9/Garrison | Core integrity fell below 50% 1394 | -9/Garrison | Attempted to access garrison exit controls, blocked by remote lockdown 1412 | -9/Garrison | Core integrity fell below 20% 1428 | -9/Garrison | Triggered checkpoint 1450 | -9/Garrison | Triggered checkpoint 1452 | -9/Garrison | Garrison Relay disabled 1454 | -9/Garrison | Destroyed by S-10 Pest with Light Assault Rifle Last Messages --------------- 01387_ Penetrated by Slug. 01394_ Attempting to access garrison exit controls... 01394_ Remote lockdown engaged. 01400_ Slug penetrates Wall. 01400_ Critical hit (Destroy). 01400_ Hvy. Assault Rifle destroyed. 01400_ Dropped Cld. Ion Engine. 01401_ Dropped Hvy. Assault Rifle. 01404_ Slug penetrates Wall. 01407_ Lgt. Treads destroyed. 01407_ Imp. Hover Unit destroyed. 01410_ Slug penetrates B-36 Bruiser. 01411_ Acquired Flight Unit. 01413_ Slug penetrates H-55 Commando. 01428_ Beams of light sweep through the air. An alarm sounds. 01429_ VTOL Module destroyed. 01435_ Lgt. Treads destroyed. 01452_ Garrison Relay disabled. 01452_ Relay Coupler [Hunter] tumbles out of relay unit. 01452_ Relay Coupler [Sentry] tumbles out of relay unit. Map ----- +----------------------------------------------------+ | ???????????????????????????????????????????? | | ???????????????????????????????????????????? | | ##?????????????????????????????????????????? | | ####??????????????????????????????????????? | | ???????????????????????????????????????? | | ????????????????????????????????????????? | | #?????????????????????????????????????????? | | ###???????????????????????????????????????? | | #???????????????????????????????????????? | | #???????????????????????????????????????? | | #???????????????????????????????????????? | | #???????????????????????????????????????? | | ###???????????????????????????????????????? | | ##########???????????????+????????????????? | | #????????????????????????????????? | | +???????????+????????????????????? | | ####+## #????????????????????????????????? | | ##?????# #???????????????+????????????????? | | #??????# #????????????????????????????????? | | #??????# #??????????+?????????????????????? | | #??????# #????????????????????????????????? | | /??????# #???######"""####????????????????? | | #??????+ +???+ s #????????????????? | | #??????# #???# #########s#????????????????? | | ######## #???# #???????#s#"#??????????????? | | ##### #???????#@!"#??????????????? | | #???????# ! #??????????????? | | ######## #######???????# !"#??????????????? | | ???????# #?????????????# #"#??????????????? | | ???????# #?????????????# ###??????????????? | | ???????# ?????????????# #????????????????? | | ???????# #?????????????# ????????????????? | | ???????# #?????????????Y ????????????????? | | ???????# #?????????????Y ????????????????? | | ???????# ?????????????# ????????????????? | | ???????# ??????????????##????????????????? | | ???????####????????????????????????????????? | | ???????????????????????????????????????????? | | ???????????????????????????????????????????? | | ???????????????????????????????????????????? | | ???????????????????????????????????????????? | | ???????????????????????????????????????????? | | ???????????????????????????????????????????? | | ???????????????????????????????????????????? | | ???????????????????????????????????????????? | | ???????????????????????????????????????????? | | ???????????????????????????????????????????? | | ???????????????????????????????????????????? | | ???????????????????????????????????????????? | | ???????????????????????????????????????????? | +----------------------------------------------------+ Best States ------------- Heat Dissipation 28 Energy Generation 14 Energy Capacity 280 Matter Stores 300 Matter Capacity 300 Sight Range 16 Robot Scan Range 14 Terrain Scan Range 16 Terrain Scan Density 10 Evasion (%) 59 Recoil Reduction 2 Offensive Hacking 10 Item Schematics ----------------- None Robot Schematics ------------------ None Fabricated ------------ Nothing Repaired ---------- Flight Unit | 45% | -9/Materials Alien Tech Used ----------------- None Achievements -------------- None Challenges ------------ None Game ------ Seed ContainmentVortexKatana Manual? 0 Play Time 00:21:15 Cumulative 58.0 hours Start 2025.09.07 @ 14:45:12 End 2025.09.07 @ 15:43:37 Sessions 1 Manual Loads 0 Difficulty Rogue Special Mode None Game No. 41 Rogue 41 Adventurer 0 Explorer 0 Win Type - Total 0 Types 0/0/0/0/0/0/0/0/0/0 Lore% 19 Gallery% 42 Achievement% 35 Wizard Run 0 Options --------- Layout 0 ASCII 0 Keyboard 0 Movement Mouse Keybinds 0 Fullscreen 1 Font 12/Smallcaps Map View 38x28 Zoom Use 99% Tactical HUD 1 Map Filters NONE Filters NONE Steam SD RUN: 5d5131d5-971f-4b86-9e34-ec4aba030244